Workbook

Sheet Multiplier
C3: Multipliers | E3: 1 | G3: 1 | M3: Dividers | O3: 1
C5: deca | D5: da | E5: =E3*10 -> 10 | G5: =G3*10 -> 10 | H5: =E5 -> 10 | I5: 10 x 10 0 | M5: atto | N5: a | O5: 0,000.000.000.000.000.001 | P5: =Q5 -> 1e+18 | Q5: =Q6*10 -> 1e+18 | R5: =1/Q5 -> 1e-18 | S5: 1 x 10 -18 | W5: Notice: | X5: Be careful with Names of numbers! For example
C6: hecto | D6: h | E6: =E5*10 -> 100 | G6: =G5*10 -> 100 | H6: =G6 -> 100 | I6: 100 x 10 0 | O6: 0,000.000.000.000.000.01 | P6: 1e+17 | Q6: 1e+17 | R6: 1e-17 | S6: 10 x 10-18
C7: kilo | D7: k | E7: 1000 | G7: 1000 | H7: 1000 | I7: 1 x 10 3 | O7: 0,000.000.000.000.000.1 | P7: 1e+16 | Q7: 1e+16 | R7: 1e-16 | S7: 100 x 10-18 | W7: USA/UK | X7: short scale | Y7: 1000000 | Z7: = 1 Billion
E8: 10000 | G8: 10000 | H8: 10000 | I8: 10 x 10 3 | M8: femto | N8: f | O8: 0,000.000.000.000.001 | P8: 1000000000000000 | Q8: 1000000000000000 | R8: 1e-15 | S8: 1 x 10 -15 | W8: continental | X8: long scale | Y8: 1000000 | Z8: = 1 Milliardth
E9: 100000 | G9: 100000 | H9: 100000 | I9: 100 x 10 3 | O9: 0,000.000.000.000.01 | P9: 100000000000000 | Q9: 100000000000000 | R9: 1e-14 | S9: 10 x 10-15 | W9: Europe | X9: long scale | Y9: 1000000000 | Z9: = 1 Billion
C10: Mega | D10: M | E10: 1000000 | G10: 1000000 | H10: 1000000 | I10: 1 x 10 6 | O10: 0,000.000.000.000.1 | P10: 10000000000000 | Q10: 10000000000000 | R10: 1e-13 | S10: 100 x 10-15
E11: 10000000 | G11: 10000000 | H11: 10000000 | I11: 10 x 10 6 | M11: pico | N11: p | O11: 0,000.000.000.001 | P11: 1000000000000 | Q11: 1000000000000 | R11: 1e-12 | S11: 1 x 10 -12 | W11: https://en.wikipedia.org/wiki/Names_of_large_numbers
E12: 100000000 | G12: 100000000 | H12: 100000000 | I12: 100 x 10 6 | O12: 0,000.000.000.01 | P12: 100000000000 | Q12: 100000000000 | R12: 1e-11 | S12: 10 x 10-12
C13: Giga | D13: G | E13: 1000000000 | G13: 1000000000 | H13: 1000000000 | I13: 1 x 10 9 | O13: 0,000.000.000.1 | P13: 10000000000 | Q13: 10000000000 | R13: 1e-10 | S13: 100 x 10-12 | W13: USA/UK | X13: short scale | Y13: 0,000 000 001 | Z13: = One One-Billionth
E14: 10000000000 | G14: 10000000000 | H14: 10000000000 | I14: 10 x 10 9 | M14: nano | N14: n | O14: 0,000.000.001 | P14: 1000000000 | Q14: 1000000000 | R14: 1e-09 | S14: 1 x 10 -9 | W14: continental | X14: long scale | Y14: 0,000 000 001 | Z14: = One One-Milliardth
E15: 100000000000 | G15: 100000000000 | H15: 100000000000 | I15: 100 x 10 9 | O15: 0,000.000.01 | P15: 100000000 | Q15: 100000000 | R15: 1e-08 | S15: 10 x 10-9 | W15: Europe | X15: long scale | Y15: 0,000 000 000 001 | Z15: = One One-Billionth
C16: Tera | D16: T | E16: 1000000000000 | G16: 1000000000000 | H16: 1000000000000 | I16: 1 x 10 12 | O16: 0,000.000.1 | P16: 10000000 | Q16: 10000000 | R16: 1e-07 | S16: 100 x 10-9
E17: 10000000000000 | G17: 10000000000000 | H17: 10000000000000 | I17: 10 x 10 12 | M17: micro | N17: µ | O17: 0,000.001 | P17: 1000000 | Q17: 1000000 | R17: 1e-06 | S17: 1 x 10 -6 | W17: https://en.wikipedia.org/wiki/Names_of_small_numbers
E18: 100000000000000 | G18: 100000000000000 | H18: 100000000000000 | I18: 100 x 10 12 | O18: 0,000.01 | P18: 100000 | Q18: 100000 | R18: 1e-05 | S18: 10 x 10-6
C19: Peta | D19: P | E19: 1000000000000000 | G19: 1000000000000000 | H19: 1000000000000000 | I19: 1 x 10 15 | O19: 0,000.1 | P19: 10000 | Q19: 10000 | R19: 0.0001 | S19: 100 x 10-6
E20: 1e+16 | G20: 1e+16 | H20: 1e+16 | I20: 10 x 10 15 | M20: milli | N20: m | O20: 0,001 | P20: 1000 | Q20: 1000 | R20: 0.001 | S20: 1 x 10 -3
E21: 1e+17 | G21: 1e+17 | H21: 1e+17 | I21: 100 x 10 15 | M21: centi | N21: c | O21: 0,01 | P21: 100 | Q21: 100 | R21: 0.01 | S21: 10 x 10-3
C22: Exa | D22: E | E22: 1e+18 | G22: 1e+18 | H22: 1e+18 | I22: 1 x 10 18 | M22: deci | N22: d | O22: 0,1 | P22: 10 | Q22: 10 | R22: 0.1 | S22: 100 x 10-3
E23: 1e+19 | G23: 1e+19 | H23: 1e+19 | I23: 10 x 10 18
E24: 1e+20 | G24: 1e+20 | H24: 1e+20 | I24: 100 x 10 18
C25: Zeta | D25: Z | E25: 1e+21 | G25: 1e+21 | H25: 1e+21 | I25: 1 x 10 21 | M25: https://en.wikipedia.org/wiki/Binary_prefix
E26: 1e+22 | G26: 1e+22 | H26: 1e+22 | I26: 10 x 10 21
E27: 1e+23 | G27: 1e+23 | H27: 1e+23 | I27: 100 x 10 21
C28: Yotta | D28: Y | E28: 1e+24 | G28: 1e+24 | H28: 1e+24 | I28: 1 x 10 24

Sheet Abbreviation
D3: Unit | E3: Name | F3: Used for | K3: Unit | L3: Name | M3: Used for | Q3: Standard atmospheric condition
Q5: N | R5: Normal | S5: Norm Condition
D6: Energy spcific | K6: General | S6: 0 °C, 1013,25 mbar
D8: W | E8: Watt | F8: Power | K8: °C | L8: Centigrate | M8: Temperature | Q8: Std | R8: Standard | S8: Norm Condition
D9: cal/h | E9: calorie per hour | F9: Power | K9: °F | L9: Fahrenheit | M9: Temperature | S9: 32 °F, 14,696 psi
D10: Btu/h | E10: Btu per hour | F10: Power
D11: bhp | E11: British horse power (boiler) | F11: Power | K11: bar | L11: bar pressure | M11: Pressure | P11: https://en.wikipedia.org/wiki/International_Standard_Atmosphere
K12: psi | L12: pound per square inch | M12: Pressure
D13: J | E13: Joule | F13: Energy | P13: https://en.wikipedia.org/wiki/Standard_temperature_and_pressure
D14: Wh | E14: Watt x hour | F14: Energy | K14: kg/m3 | L14: kilogram/cubic meter | M14: Density
D15: cal | E15: calorie | F15: Energy | K15: lb/cu ft | L15: pound per cubic foot | M15: Density
D16: Btu | E16: British thermal unit | F16: Energy
K17: g | L17: gram | M17: Weight
D18: J/g | E18: Joule per gram | F18: Enthalpy | K18: lb | L18: pound | M18: Weight
D19: cal/g | E19: Calorie per gram | F19: Enthalpy | K19: m | L19: meter | M19: Length
D20: Btu/lb | E20: Btu/pound | F20: Enthalpy | K20: m2 | L20: square meter | M20: Area
K21: m3 | L21: cubic meter | M21: Volume
D22: J / [g x K] | E22: Joule per gram and degree | F22: Entropy / specific heat
D23: cal /[ g x °C] | E23: calories per gram and degree | F23: Entropy / specific heat | K23: ft | L23: foot | M23: Length
D24: Btu / [lb x °F] | E24: Btu per pound and degree | F24: Entropy / specific heat | K24: sq ft | L24: square foot | M24: Area
K25: cu ft | L25: cubic foot | M25: Volume
S26: v

Sheet Conv
C3: Energy specific | R3: General Unit conversions
D6: POWER | K6: Enthalpy / Specific Energy / Heat of Combustion | S6: Others
D7: kW | E7: kcal/h | F7: Btu/h | G7: bhp (boiler) | K7: kJ/kg | L7: kcal/kg | M7: Btu/lb | S7: Temperature | T7: °C | U7: °F
D8: 1 | E8: =D8*859.845227868 -> 859.8452279 | F8: =D8*3412.1416331 -> 3412.141633 | G8: =D8*0.10192997 -> 0.10192997 | K8: 1 | L8: =K8*0.23884589663 -> 0.2388458966 | M8: =K8*0.42992261393 -> 0.4299226139 | T8: 100 | U8: =T8*9/5+32 -> 212
D9: =E9/859.845227868 -> 1.163 | E9: 1000 | F9: =E9*3.9683207192537 -> 3968.320719 | G9: =E9*0.000118544555108757 -> 0.1185445551 | K9: =L9*4.1868 -> 4.1868 | L9: 1 | M9: =L9*1.7999966528037 -> 1.799996653 | T9: =(U9-32)*5/9 -> 37.77777778 | U9: 100
D10: =F10*0.000293071000000258 -> 0.293071 | E10: =F10*0.251995700776725 -> 251.9957008 | F10: 1000 | G10: =F10*0.0000298639563441125 -> 0.02986395634 | K10: =M10*2.32444620069269 -> 2.324446201 | L10: =M10*0.555556588642756 -> 0.5555565886 | M10: 1 | S10: Pressure | T10: bar | U10: psi ( lbf/in² )
D11: =G11*9.81065725811555 -> 9.810657258 | E11: =G11*8435.64682563921 -> 8435.646826 | F11: =G11*33475.3520784908 -> 33475.35208 | G11: 1 | T11: 1 | U11: =T11*14.503773773 -> 14.50377377
T12: =U12*0.068947572932 -> 0.06894757293 | U12: 1
S13: Density | T13: kg/m3 | U13: lb/cu ft
D14: 1 kW = 1 kJ / s | K14: Entropy / Specifc Heat Capacity | T14: 1 | U14: =T14*0.062427960576 -> 0.06242796058
K15: kJ/[kg x K] | L15: kcal/[kg x °C] | M15: Btu/[lb x °F] | T15: =U15*16.018463374 -> 16.01846337 | U15: 1
K16: 1 | L16: =K16*0.23884589663 -> 0.2388458966 | M16: =K16*0.23884589663 -> 0.2388458966 | S16: Weight | T16: kg | U16: lb
D17: ENERGY | K17: =L17*4.1868 -> 4.1868 | L17: 1 | M17: =L17 -> 1 | T17: 1 | U17: =T17*2.2046226218 -> 2.204622622
D18: MJ | E18: kWh | F18: Btu | G18: kcal | K18: =M18*4.1868 -> 4.1868 | L18: =M18 -> 1 | M18: 1 | T18: =U18*0.45359237 -> 0.45359237 | U18: 1
D19: 1 | E19: =D19*0.27777778 -> 0.27777778 | F19: =D19*947.81707775 -> 947.8170777 | G19: =D19*238.84589663 -> 238.8458966
D20: =E20*3.5999999712 -> 3.599999971 | E20: 1 | F20: =E20*3412.14145260287 -> 3412.141453 | G20: =E20*859.845220989238 -> 859.845221
D21: =F21*0.00105505589999905 -> 1.0550559 | E21: =F21*0.000293071085677639 -> 0.2930710857 | F21: 1000 | G21: =F21*0.251995772430046 -> 251.9957724
D22: =G22*0.00418679999995611 -> 0.41868 | E22: =G22*0.00116300000929181 -> 0.1163000009 | F22: =G22*3.9683205410821 -> 396.8320541 | G22: 100 | S22: Dimensions
S23: Lenght | T23: m | U23: ft
T24: 1 | U24: =T24*3.280839895 -> 3.280839895
D25: 1 kJ = 1.000 Nm = 1 kgm = 737,56215 ft lb | T25: =U25*0.3048 -> 0.3048 | U25: 1
S26: Area | T26: m2 | U26: sq ft
D27: Please note that in our calculations wie use | T27: 1 | U27: =T27*10.763910417 -> 10.76391042
D28: the "International Table" for Calorie and BTU | T28: =U28*0.09290304 -> 0.09290304 | U28: 1
S29: Volume | T29: m3 | U29: cu ft
T30: 1 | U30: =T30*35.314666721 -> 35.31466672
T31: =U31*0.028316846592 -> 0.02831684659 | U31: 1
C32: https://online.unitconverterpro.com/
